[Event "*** Titled Tuesday Blitz"]
[Site "Chess.com"]
[Date "2021.02.16"]
[Round "6"]
[White "DinaBelenkaya"]
[Black "Maddie"]
[Result "1-0"]
[WhiteElo "2301"]
[BlackElo "2047"]
[TimeControl "180+1"]
[EndTime "11:09:17 PST"]
[Termination "DinaBelenkaya won by resignation"]

1. e4 {[%clk 0:03:00.9]} 1... c6 {[%clk 0:02:59.7]} 2. Nc3 {[%clk 0:03:00.1]}
2... d5 {[%clk 0:03:00.1]} 3. Nf3 {[%clk 0:02:52.6]} 3... dxe4 {[%clk
0:02:59.2]} 4. Nxe4 {[%clk 0:02:53.5]} 4... Nd7 {[%clk 0:02:58.8]} 5. Qe2 {[%clk
0:02:52.8]} 5... e6 {[%clk 0:02:58.6]} 6. d4 {[%clk 0:02:51.8]} 6... Ngf6 {[%clk
0:02:58.6]} 7. Neg5 {[%clk 0:02:49.6]} 7... Be7 {[%clk 0:02:56.6]} 8. c4 {[%clk
0:02:47.1]} 8... h6 {[%clk 0:02:47.2]} 9. Nh3 {[%clk 0:02:43.1]} 9... O-O {[%clk
0:02:35.1]} 10. Qc2 {[%clk 0:02:41]} 10... c5 {[%clk 0:02:33.5]} 11. Be3 {[%clk
0:02:34.7]} 11... cxd4 {[%clk 0:02:31.3]} 12. Nxd4 {[%clk 0:02:34.3]} 12... Bc5
{[%clk 0:02:23.4]} 13. O-O-O {[%clk 0:02:29.7]} 13... Qa5 {[%clk 0:02:07.6]} 14.
Kb1 {[%clk 0:02:20.7]} 14... Qb6 {[%clk 0:02:03.5]} 15. Bd3 {[%clk 0:02:12.5]}
15... Ne5 {[%clk 0:02:00.4]} 16. Be2 {[%clk 0:02:05.4]} 16... Nc6 {[%clk
0:01:45.9]} 17. Nxc6 {[%clk 0:01:56]} 17... Qxc6 {[%clk 0:01:36.2]} 18. Bxc5
{[%clk 0:01:53.6]} 18... Qxc5 {[%clk 0:01:35.8]} 19. Bf3 {[%clk 0:01:49.6]}
19... Bd7 {[%clk 0:01:28.9]} 20. Nf4 {[%clk 0:01:40.5]} 20... Bc6 {[%clk
0:01:25]} 21. Nd3 {[%clk 0:01:40.3]} 21... Qb6 {[%clk 0:01:20.8]} 22. Bxc6
{[%clk 0:01:35.3]} 22... Qxc6 {[%clk 0:01:20.4]} 23. Ne5 {[%clk 0:01:36.2]}
23... Qc7 {[%clk 0:01:17.3]} 24. f4 {[%clk 0:01:36.5]} 24... Rac8 {[%clk
0:01:15.7]} 25. Qa4 {[%clk 0:01:33.9]} 25... a6 {[%clk 0:01:12.3]} 26. Rd4
{[%clk 0:00:44.8]} 26... Qc5 {[%clk 0:01:04.4]} 27. Rhd1 {[%clk 0:00:43.3]}
27... b5 {[%clk 0:00:55.3]} 28. Qxa6 {[%clk 0:00:43.2]} 28... bxc4 {[%clk
0:00:49.9]} 29. Qxc4 {[%clk 0:00:41]} 29... Qa5 {[%clk 0:00:36.5]} 30. Qb4
{[%clk 0:00:38.9]} 30... Qa8 {[%clk 0:00:29.8]} 31. g4 {[%clk 0:00:29]} 31...
Rb8 {[%clk 0:00:20.5]} 32. Qd2 {[%clk 0:00:25.3]} 32... Qb7 {[%clk 0:00:19.3]}
33. g5 {[%clk 0:00:15.3]} 33... hxg5 {[%clk 0:00:19.1]} 34. fxg5 {[%clk
0:00:16.2]} 34... Nd5 {[%clk 0:00:19.5]} 35. Rh4 {[%clk 0:00:09]} 35... Rfc8
{[%clk 0:00:17]} 36. Ka1 {[%clk 0:00:08.9]} 36... Qb4 {[%clk 0:00:10.9]} 37.
Rxb4 {[%clk 0:00:07.1]} 37... Nxb4 {[%clk 0:00:11]} 38. Rc1 {[%clk 0:00:05.9]}
38... Rxc1+ {[%clk 0:00:09.5]} 39. Qxc1 {[%clk 0:00:06.8]} 39... Nd5 {[%clk
0:00:09.7]} 40. a3 {[%clk 0:00:06.8]} 40... Rb3 {[%clk 0:00:09.5]} 41. Ka2
{[%clk 0:00:06.3]} 41... Re3 {[%clk 0:00:09.6]} 42. Qc8+ {[%clk 0:00:05.9]}
42... Kh7 {[%clk 0:00:09.2]} 43. Nxf7 {[%clk 0:00:06.8]} 43... Kg6 {[%clk
0:00:09.6]} 44. Nd6 {[%clk 0:00:05.2]} 44... Kxg5 {[%clk 0:00:09.3]} 45. Qd8+
{[%clk 0:00:05.1]} 45... Kg6 {[%clk 0:00:09]} 46. Qe8+ {[%clk 0:00:06]} 46...
Kh7 {[%clk 0:00:09.2]} 47. Qf7 {[%clk 0:00:06]} 47... Nf6 {[%clk 0:00:08.5]} 48.
Ne8 {[%clk 0:00:03.2]} 48... Kh6 {[%clk 0:00:06.9]} 49. Nxf6 {[%clk 0:00:03.1]}
49... gxf6 {[%clk 0:00:06.5]} 50. Qxf6+ {[%clk 0:00:04]} 50... Kh5 {[%clk
0:00:06.8]} 51. Qf7+ {[%clk 0:00:04.6]} 51... Kg4 {[%clk 0:00:07]} 52. a4 {[%clk
0:00:05.4]} 52... Rf3 {[%clk 0:00:06.5]} 53. Qg7+ {[%clk 0:00:05.6]} 53... Kf4
{[%clk 0:00:06.8]} 54. a5 {[%clk 0:00:06.5]} 54... Ke3 {[%clk 0:00:07]} 55. a6
{[%clk 0:00:06.6]} 55... Rf5 {[%clk 0:00:07.6]} 56. a7 {[%clk 0:00:06.6]} 56...
Ra5+ {[%clk 0:00:07]} 57. Kb3 {[%clk 0:00:07]} 57... Kd3 {[%clk 0:00:07.1]} 58.
Qd7+ {[%clk 0:00:06.3]} 58... Ke4 {[%clk 0:00:07.2]} 59. Qc7 {[%clk 0:00:07.2]}
59... Ra6 {[%clk 0:00:05.7]} 60. Qb7+ {[%clk 0:00:07.1]} 1-0

[Event "*** Titled Tuesday Blitz"]
[Site "Chess.com"]
[Date "2021.02.16"]
[Round "6"]
[White "DonPreuss"]
[Black "WiktoriaPOL"]
[Result "1-0"]
[WhiteElo "2261"]
[BlackElo "2025"]
[TimeControl "180+1"]
[EndTime "11:09:17 PST"]
[Termination "DonPreuss won by checkmate"]

1. d4 {[%clk 0:03:00.9]} 1... Nf6 {[%clk 0:02:59.5]} 2. Nc3 {[%clk 0:02:59.2]}
2... d5 {[%clk 0:02:58.6]} 3. e4 {[%clk 0:02:58.7]} 3... dxe4 {[%clk 0:02:56.7]}
4. f3 {[%clk 0:02:59]} 4... exf3 {[%clk 0:02:55.8]} 5. Nxf3 {[%clk 0:02:59.9]}
5... g6 {[%clk 0:02:55.7]} 6. Bd3 {[%clk 0:02:59.8]} 6... Bg7 {[%clk 0:02:55.9]}
7. O-O {[%clk 0:03:00.4]} 7... O-O {[%clk 0:02:55.7]} 8. Qe1 {[%clk 0:03:01]}
8... Nc6 {[%clk 0:02:52.4]} 9. Qh4 {[%clk 0:03:01.1]} 9... Bg4 {[%clk
0:02:48.5]} 10. Ne2 {[%clk 0:02:52]} 10... h5 {[%clk 0:02:36.2]} 11. c3 {[%clk
0:02:48]} 11... Qd7 {[%clk 0:02:17]} 12. Bc2 {[%clk 0:02:40.4]} 12... Bxf3
{[%clk 0:01:56.8]} 13. Rxf3 {[%clk 0:02:38.3]} 13... e5 {[%clk 0:01:46.4]} 14.
Rxf6 {[%clk 0:02:24.9]} 14... Bxf6 {[%clk 0:01:37.5]} 15. Qxf6 {[%clk
0:02:24.7]} 15... Qe7 {[%clk 0:01:37.4]} 16. Qxe7 {[%clk 0:02:21.2]} 16... Nxe7
{[%clk 0:01:38.3]} 17. dxe5 {[%clk 0:02:21.1]} 17... Nc6 {[%clk 0:01:37.6]} 18.
Bf4 {[%clk 0:02:18.8]} 18... Rfe8 {[%clk 0:01:35.1]} 19. Nd4 {[%clk 0:01:56.7]}
19... Nxe5 {[%clk 0:01:31.9]} 20. Re1 {[%clk 0:01:50.3]} 20... Nd7 {[%clk
0:01:19.8]} 21. Rxe8+ {[%clk 0:01:39.6]} 21... Rxe8 {[%clk 0:01:19.3]} 22. Bxc7
{[%clk 0:01:40]} 22... Re1+ {[%clk 0:01:15.7]} 23. Kf2 {[%clk 0:01:39.8]} 23...
Ra1 {[%clk 0:01:14.9]} 24. Bd6 {[%clk 0:01:15.7]} 24... Rxa2 {[%clk 0:01:13.4]}
25. Ba3 {[%clk 0:01:15.6]} 25... Nb6 {[%clk 0:01:08]} 26. Nb3 {[%clk 0:01:04.3]}
26... Nc4 {[%clk 0:01:06.1]} 27. Bb1 {[%clk 0:01:01.4]} 27... Rxa3 {[%clk
0:00:56]} 28. bxa3 {[%clk 0:00:59.9]} 28... Nxa3 {[%clk 0:00:56.9]} 29. Bd3
{[%clk 0:00:58.3]} 29... Kf8 {[%clk 0:00:48.1]} 30. Ke2 {[%clk 0:00:58.8]} 30...
Ke7 {[%clk 0:00:48.1]} 31. Kd2 {[%clk 0:00:58.3]} 31... Kd6 {[%clk 0:00:48.1]}
32. Kc1 {[%clk 0:00:58.4]} 32... Kc6 {[%clk 0:00:45.8]} 33. Kb2 {[%clk
0:00:58.5]} 33... Nb5 {[%clk 0:00:46.1]} 34. Bxb5+ {[%clk 0:00:49.1]} 34... Kxb5
{[%clk 0:00:46.3]} 35. Kc2 {[%clk 0:00:47.3]} 35... Kc4 {[%clk 0:00:40.5]} 36.
Nd2+ {[%clk 0:00:45.8]} 36... Kd5 {[%clk 0:00:38.1]} 37. Kd3 {[%clk 0:00:45.4]}
37... b5 {[%clk 0:00:32.6]} 38. Nb3 {[%clk 0:00:39.4]} 38... f5 {[%clk
0:00:29.1]} 39. h4 {[%clk 0:00:38.7]} 39... Ke5 {[%clk 0:00:21.4]} 40. Ke3
{[%clk 0:00:37.3]} 40... Kd5 {[%clk 0:00:21]} 41. Kd3 {[%clk 0:00:30]} 41... Ke5
{[%clk 0:00:20.5]} 42. Nd2 {[%clk 0:00:18.4]} 42... Kf4 {[%clk 0:00:17.1]} 43.
Kd4 {[%clk 0:00:17.4]} 43... Kg3 {[%clk 0:00:15.2]} 44. Kc5 {[%clk 0:00:17.7]}
44... a6 {[%clk 0:00:11.8]} 45. Kb6 {[%clk 0:00:18]} 45... Kxg2 {[%clk
0:00:11.7]} 46. Kxa6 {[%clk 0:00:18.2]} 46... f4 {[%clk 0:00:08.9]} 47. Kxb5
{[%clk 0:00:18.3]} 47... f3 {[%clk 0:00:09.3]} 48. c4 {[%clk 0:00:11.6]} 48...
f2 {[%clk 0:00:09.7]} 49. c5 {[%clk 0:00:11.7]} 49... f1=Q+ {[%clk 0:00:09.4]}
50. Nxf1 {[%clk 0:00:11.5]} 50... Kxf1 {[%clk 0:00:10.3]} 51. c6 {[%clk
0:00:11.8]} 51... Kg2 {[%clk 0:00:10.8]} 52. c7 {[%clk 0:00:12.4]} 52... Kg3
{[%clk 0:00:10.5]} 53. c8=Q {[%clk 0:00:12.8]} 53... Kxh4 {[%clk 0:00:10.8]} 54.
Kc4 {[%clk 0:00:12]} 54... g5 {[%clk 0:00:11]} 55. Kd3 {[%clk 0:00:12.5]} 55...
g4 {[%clk 0:00:11.4]} 56. Ke2 {[%clk 0:00:13.1]} 56... Kg3 {[%clk 0:00:11.6]}
57. Kf1 {[%clk 0:00:13.2]} 57... Kh2 {[%clk 0:00:09.1]} 58. Qc7+ {[%clk
0:00:11.7]} 58... g3 {[%clk 0:00:08.7]} 59. Qf4 {[%clk 0:00:10.7]} 59... Kh1
{[%clk 0:00:05]} 60. Qf3+ {[%clk 0:00:07.6]} 60... Kh2 {[%clk 0:00:04.3]} 61.
Qg2# {[%clk 0:00:08.5]} 1-0

[Event "*** Titled Tuesday Blitz"]
[Site "Chess.com"]
[Date "2021.02.16"]
[Round "6"]
[White "JoakimVonAnd"]
[Black "ChessQueen"]
[Result "0-1"]
[WhiteElo "2558"]
[BlackElo "2738"]
[TimeControl "180+1"]
[EndTime "11:09:19 PST"]
[Termination "ChessQueen won by resignation"]

1. d4 {[%clk 0:03:00.9]} 1... Nf6 {[%clk 0:02:59.6]} 2. c4 {[%clk 0:03:01.2]}
2... e6 {[%clk 0:02:59.7]} 3. Nc3 {[%clk 0:02:59.2]} 3... Bb4 {[%clk 0:02:59]}
4. f3 {[%clk 0:02:59.3]} 4... c5 {[%clk 0:02:57.1]} 5. d5 {[%clk 0:02:59.1]}
5... b5 {[%clk 0:02:55.7]} 6. e4 {[%clk 0:02:58.5]} 6... O-O {[%clk 0:02:55.1]}
7. Nh3 {[%clk 0:02:51.3]} 7... d6 {[%clk 0:02:46.4]} 8. Nf2 {[%clk 0:02:49.5]}
8... exd5 {[%clk 0:02:44.6]} 9. cxd5 {[%clk 0:02:45.3]} 9... c4 {[%clk
0:02:44.1]} 10. Be3 {[%clk 0:02:45]} 10... Nbd7 {[%clk 0:02:42.8]} 11. Be2
{[%clk 0:02:44.5]} 11... Rb8 {[%clk 0:02:36.5]} 12. O-O {[%clk 0:02:42.7]} 12...
Bc5 {[%clk 0:02:34.8]} 13. Qd2 {[%clk 0:02:40.1]} 13... Qb6 {[%clk 0:02:32.9]}
14. Bxc5 {[%clk 0:02:35.3]} 14... Qxc5 {[%clk 0:02:33.1]} 15. a4 {[%clk
0:02:26.2]} 15... b4 {[%clk 0:02:31.6]} 16. Nb5 {[%clk 0:02:24.4]} 16... Ba6
{[%clk 0:02:15.5]} 17. Rfc1 {[%clk 0:02:16]} 17... Nb6 {[%clk 0:02:06.3]} 18.
Nxa7 {[%clk 0:02:09.6]} 18... Nbxd5 {[%clk 0:01:12.7]} 19. exd5 {[%clk
0:02:07.4]} 19... c3 {[%clk 0:01:09.1]} 20. Bxa6 {[%clk 0:01:49.3]} 20... cxd2
{[%clk 0:01:05.6]} 21. Rxc5 {[%clk 0:01:48.8]} 21... dxc5 {[%clk 0:01:06.5]} 22.
Nc6 {[%clk 0:01:46.8]} 22... Rbe8 {[%clk 0:01:01.8]} 23. Rd1 {[%clk 0:01:34]}
23... Re1+ {[%clk 0:00:59.1]} 24. Bf1 {[%clk 0:01:34]} 24... Nxd5 {[%clk
0:00:59.1]} 25. Rxd2 {[%clk 0:01:10.8]} 25... Ne3 {[%clk 0:00:59.3]} 26. h4
{[%clk 0:01:06.4]} 26... Rxf1+ {[%clk 0:00:58.1]} 27. Kh2 {[%clk 0:01:05.1]}
27... g6 {[%clk 0:00:57.6]} 28. Re2 {[%clk 0:01:00.2]} 28... Nd5 {[%clk
0:00:54.9]} 29. a5 {[%clk 0:00:59.5]} 29... c4 {[%clk 0:00:52.6]} 30. a6 {[%clk
0:00:58.7]} 30... c3 {[%clk 0:00:51.5]} 31. bxc3 {[%clk 0:00:58.8]} 31... Nxc3
{[%clk 0:00:50.6]} 32. Rb2 {[%clk 0:00:56.9]} 32... Ra8 {[%clk 0:00:46.9]} 33.
a7 {[%clk 0:00:55.8]} 33... Nb5 {[%clk 0:00:46.2]} 34. Rxb4 {[%clk 0:00:34.3]}
34... Nxa7 {[%clk 0:00:46.5]} 35. Nxa7 {[%clk 0:00:33.2]} 35... Rxa7 {[%clk
0:00:47.4]} 36. Ng4 {[%clk 0:00:27.9]} 36... Kg7 {[%clk 0:00:47.4]} 37. Ne3
{[%clk 0:00:22.1]} 37... Re1 {[%clk 0:00:46.5]} 38. Rb3 {[%clk 0:00:22.4]} 38...
Re2 {[%clk 0:00:45.4]} 39. Kg3 {[%clk 0:00:20.8]} 39... h5 {[%clk 0:00:45.3]}
40. Rd3 {[%clk 0:00:19.1]} 40... Re7 {[%clk 0:00:44.5]} 41. Nd5 {[%clk
0:00:19.2]} 41... Rd7 {[%clk 0:00:42.6]} 42. Nf4 {[%clk 0:00:19.3]} 42... Rxd3
{[%clk 0:00:42.5]} 43. Nxe2 {[%clk 0:00:19.4]} 43... Ra3 {[%clk 0:00:41.9]} 44.
Nf4 {[%clk 0:00:19.7]} 44... Kf6 {[%clk 0:00:42.3]} 45. Nd5+ {[%clk 0:00:19.6]}
45... Ke6 {[%clk 0:00:42.8]} 46. Nf4+ {[%clk 0:00:18.9]} 46... Ke5 {[%clk
0:00:43.1]} 47. Ne2 {[%clk 0:00:18.7]} 47... Ra4 {[%clk 0:00:43.3]} 48. Kh3
{[%clk 0:00:17.6]} 48... f6 {[%clk 0:00:42.9]} 49. Kg3 {[%clk 0:00:17.4]} 49...
Rc4 {[%clk 0:00:41.7]} 50. Kh3 {[%clk 0:00:16.4]} 50... Rc2 {[%clk 0:00:41.9]}
51. Ng3 {[%clk 0:00:13.7]} 51... f5 {[%clk 0:00:41.9]} 52. Nf1 {[%clk
0:00:11.1]} 52... Kf4 {[%clk 0:00:42.3]} 53. Nh2 {[%clk 0:00:09.8]} 53... Rc1
{[%clk 0:00:42.6]} 54. g3+ {[%clk 0:00:09]} 54... Ke3 {[%clk 0:00:43]} 55. Kg2
{[%clk 0:00:08.4]} 55... Rc2+ {[%clk 0:00:42.8]} 56. Kh3 {[%clk 0:00:08.9]}
56... Rxh2+ {[%clk 0:00:36.6]} 57. Kxh2 {[%clk 0:00:09.8]} 57... Kxf3 {[%clk
0:00:37.1]} 58. Kh3 {[%clk 0:00:10.7]} 58... f4 {[%clk 0:00:37.3]} 59. gxf4
{[%clk 0:00:11.6]} 59... Kxf4 {[%clk 0:00:37.7]} 60. Kh2 {[%clk 0:00:12.3]}
60... Kg4 {[%clk 0:00:38.2]} 61. Kg2 {[%clk 0:00:13.2]} 61... Kxh4 {[%clk
0:00:38.8]} 62. Kh2 {[%clk 0:00:14.1]} 62... Kg4 {[%clk 0:00:39.3]} 63. Kg2
{[%clk 0:00:15]} 63... h4 {[%clk 0:00:39.8]} 64. Kh2 {[%clk 0:00:15.9]} 64... h3
{[%clk 0:00:40.4]} 65. Kh1 {[%clk 0:00:16.5]} 65... g5 {[%clk 0:00:39.4]} 66.
Kg1 {[%clk 0:00:17.4]} 66... Kg3 {[%clk 0:00:38.9]} 67. Kh1 {[%clk 0:00:18.3]}
67... Kf3 {[%clk 0:00:34.6]} 68. Kh2 {[%clk 0:00:19.2]} 68... g4 {[%clk
0:00:34.3]} 69. Kh1 {[%clk 0:00:19.8]} 69... Kf2 {[%clk 0:00:34.6]} 70. Kh2
{[%clk 0:00:19.9]} 70... g3+ {[%clk 0:00:35.2]} 71. Kxh3 {[%clk 0:00:18.4]}
71... g2 {[%clk 0:00:35.7]} 72. Kh4 {[%clk 0:00:18.8]} 72... g1=Q {[%clk
0:00:36.2]} 0-1

[Event "*** Titled Tuesday Blitz"]
[Site "Chess.com"]
[Date "2021.02.16"]
[Round "6"]
[White "ram1zan"]
[Black "Mazetovic"]
[Result "1/2-1/2"]
[WhiteElo "2865"]
[BlackElo "2702"]
[TimeControl "180+1"]
[EndTime "11:09:22 PST"]
[Termination "Game drawn by repetition"]

1. e4 {[%clk 0:03:00.9]} 1... c5 {[%clk 0:02:53.8]} 2. Nf3 {[%clk 0:03:00.6]}
2... Nc6 {[%clk 0:02:48.1]} 3. d4 {[%clk 0:03:00.1]} 3... cxd4 {[%clk 0:02:46]}
4. Nxd4 {[%clk 0:03:01]} 4... g6 {[%clk 0:02:45.9]} 5. Nc3 {[%clk 0:02:59.3]}
5... Bg7 {[%clk 0:02:45.8]} 6. Be3 {[%clk 0:02:59.8]} 6... Nf6 {[%clk
0:02:46.1]} 7. Bc4 {[%clk 0:03:00.3]} 7... Qa5 {[%clk 0:02:45.4]} 8. O-O {[%clk
0:02:55.3]} 8... O-O {[%clk 0:02:44.1]} 9. h3 {[%clk 0:02:55.2]} 9... d6 {[%clk
0:02:43.6]} 10. Bb3 {[%clk 0:02:54.9]} 10... Bd7 {[%clk 0:02:43.2]} 11. f4
{[%clk 0:02:55]} 11... Nxd4 {[%clk 0:02:40.1]} 12. Bxd4 {[%clk 0:02:55.9]} 12...
Bc6 {[%clk 0:02:40.1]} 13. Qd3 {[%clk 0:02:46.5]} 13... Nd7 {[%clk 0:02:39]} 14.
Rae1 {[%clk 0:02:43.7]} 14... Bxd4+ {[%clk 0:02:36.7]} 15. Qxd4 {[%clk
0:02:44.6]} 15... Qc5 {[%clk 0:02:36.7]} 16. Rd1 {[%clk 0:02:36.9]} 16... Qxd4+
{[%clk 0:02:26.1]} 17. Rxd4 {[%clk 0:02:37.8]} 17... Nc5 {[%clk 0:02:26.3]} 18.
Re1 {[%clk 0:02:34.9]} 18... Rac8 {[%clk 0:02:16.8]} 19. Bd5 {[%clk 0:02:34.4]}
19... Rfd8 {[%clk 0:02:07.7]} 20. Kf2 {[%clk 0:02:08.7]} 20... e6 {[%clk
0:01:59]} 21. Bxc6 {[%clk 0:02:08.3]} 21... bxc6 {[%clk 0:01:59.8]} 22. Rc4
{[%clk 0:01:54.7]} 22... Nd7 {[%clk 0:01:52.6]} 23. Ra4 {[%clk 0:01:49.6]} 23...
Rc7 {[%clk 0:01:47.9]} 24. Ra5 {[%clk 0:01:49.7]} 24... d5 {[%clk 0:01:43.7]}
25. Rd1 {[%clk 0:01:45.5]} 25... Rb8 {[%clk 0:01:38.1]} 26. b3 {[%clk
0:01:45.1]} 26... Nb6 {[%clk 0:01:32.9]} 27. Ke3 {[%clk 0:01:35.3]} 27... Nc8
{[%clk 0:01:27]} 28. Rc5 {[%clk 0:01:22.2]} 28... Rbb7 {[%clk 0:01:17.9]} 29.
Rd4 {[%clk 0:00:57.9]} 29... Nb6 {[%clk 0:01:17.1]} 30. Rd2 {[%clk 0:00:53.8]}
30... Nd7 {[%clk 0:01:11.3]} 31. Ra5 {[%clk 0:00:53.9]} 31... h5 {[%clk
0:01:09.4]} 32. a3 {[%clk 0:00:38]} 32... h4 {[%clk 0:01:05.9]} 33. Kf3 {[%clk
0:00:35.1]} 33... Kg7 {[%clk 0:00:58.4]} 34. Kg4 {[%clk 0:00:26.4]} 34... Nf6+
{[%clk 0:00:58.2]} 35. Kxh4 {[%clk 0:00:26.7]} 35... dxe4 {[%clk 0:00:55.7]} 36.
g4 {[%clk 0:00:26.2]} 36... e3 {[%clk 0:00:53.1]} 37. Rd3 {[%clk 0:00:22]} 37...
Nd5 {[%clk 0:00:53.1]} 38. Kg3 {[%clk 0:00:21.4]} 38... f5 {[%clk 0:00:39]} 39.
Ne2 {[%clk 0:00:19.6]} 39... c5 {[%clk 0:00:34.1]} 40. c4 {[%clk 0:00:16.6]}
40... Nf6 {[%clk 0:00:33.3]} 41. Rxe3 {[%clk 0:00:16.6]} 41... Ne4+ {[%clk
0:00:33.1]} 42. Kg2 {[%clk 0:00:14.9]} 42... Rd7 {[%clk 0:00:32.6]} 43. Ng3
{[%clk 0:00:07.2]} 43... Rd2+ {[%clk 0:00:30.7]} 44. Kg1 {[%clk 0:00:07.7]}
44... Nxg3 {[%clk 0:00:25.7]} 45. Rxg3 {[%clk 0:00:08.6]} 45... Rbd7 {[%clk
0:00:21.7]} 46. Rxc5 {[%clk 0:00:05.4]} 46... Ra2 {[%clk 0:00:20.6]} 47. Rg2
{[%clk 0:00:04.8]} 47... Rxa3 {[%clk 0:00:20]} 48. Rb5 {[%clk 0:00:02]} 48...
Rd3 {[%clk 0:00:18]} 49. gxf5 {[%clk 0:00:02.3]} 49... exf5 {[%clk 0:00:17.6]}
50. Rxf5 {[%clk 0:00:03]} 50... Raxb3 {[%clk 0:00:17.6]} 51. Rfg5 {[%clk
0:00:03.6]} 51... Rxh3 {[%clk 0:00:13.5]} 52. Rxg6+ {[%clk 0:00:03.9]} 52... Kf7
{[%clk 0:00:13.9]} 53. Ra6 {[%clk 0:00:03]} 53... Rb1+ {[%clk 0:00:12.7]} 54.
Kf2 {[%clk 0:00:03.7]} 54... Rb2+ {[%clk 0:00:12.9]} 55. Kg1 {[%clk 0:00:04.4]}
55... Rb1+ {[%clk 0:00:12.2]} 56. Kf2 {[%clk 0:00:04.9]} 56... Rb2+ {[%clk
0:00:05.5]} 57. Kf1 {[%clk 0:00:04.5]} 57... Rb1+ {[%clk 0:00:05.7]} 58. Kf2
{[%clk 0:00:03]} 1/2-1/2

[Event "*** Titled Tuesday Blitz"]
[Site "Chess.com"]
[Date "2021.02.16"]
[Round "6"]
[White "Nemsko"]
[Black "IngOscarArdila"]
[Result "1/2-1/2"]
[WhiteElo "2333"]
[BlackElo "2160"]
[TimeControl "180+1"]
[EndTime "11:09:22 PST"]
[Termination "Game drawn - insufficient material"]

1. e4 {[%clk 0:03:00.9]} 1... e5 {[%clk 0:02:57.8]} 2. Nf3 {[%clk 0:03:00.8]}
2... Nc6 {[%clk 0:02:57.7]} 3. Bb5 {[%clk 0:03:00.8]} 3... a6 {[%clk 0:02:57.2]}
4. Ba4 {[%clk 0:02:59.5]} 4... Nf6 {[%clk 0:02:57.1]} 5. O-O {[%clk 0:02:58.8]}
5... b5 {[%clk 0:02:56.9]} 6. Bb3 {[%clk 0:02:58.8]} 6... Be7 {[%clk 0:02:57.1]}
7. Re1 {[%clk 0:02:56.9]} 7... O-O {[%clk 0:02:57.1]} 8. h3 {[%clk 0:02:56.3]}
8... d6 {[%clk 0:02:57.1]} 9. c3 {[%clk 0:02:56.5]} 9... Na5 {[%clk 0:02:55.5]}
10. Bc2 {[%clk 0:02:56.8]} 10... c5 {[%clk 0:02:55]} 11. d4 {[%clk 0:02:56.9]}
11... Qc7 {[%clk 0:02:53.9]} 12. d5 {[%clk 0:02:56.4]} 12... Nb7 {[%clk
0:02:53.4]} 13. Nbd2 {[%clk 0:02:52.1]} 13... Re8 {[%clk 0:02:52.4]} 14. Nf1
{[%clk 0:02:52.3]} 14... c4 {[%clk 0:02:49.8]} 15. Ng3 {[%clk 0:02:51.6]} 15...
g6 {[%clk 0:02:49.5]} 16. Bh6 {[%clk 0:02:49.8]} 16... Nc5 {[%clk 0:02:48.4]}
17. Qd2 {[%clk 0:02:47.3]} 17... a5 {[%clk 0:02:44.5]} 18. Nh2 {[%clk
0:02:38.9]} 18... Rb8 {[%clk 0:02:28.3]} 19. Kh1 {[%clk 0:02:35.3]} 19... b4
{[%clk 0:02:26.5]} 20. f4 {[%clk 0:02:32.9]} 20... bxc3 {[%clk 0:02:08]} 21.
bxc3 {[%clk 0:02:32.6]} 21... exf4 {[%clk 0:01:54.4]} 22. Bxf4 {[%clk 0:02:32]}
22... Nfd7 {[%clk 0:01:53.6]} 23. Ng4 {[%clk 0:02:31.2]} 23... Ne5 {[%clk
0:01:49.1]} 24. Nh6+ {[%clk 0:02:23.9]} 24... Kg7 {[%clk 0:01:48.7]} 25. Rf1
{[%clk 0:02:20.7]} 25... f6 {[%clk 0:01:46.1]} 26. Rad1 {[%clk 0:02:04.8]} 26...
Bf8 {[%clk 0:01:31.9]} 27. Bxe5 {[%clk 0:02:00.9]} 27... Rxe5 {[%clk 0:01:31.8]}
28. Qf4 {[%clk 0:01:51.2]} 28... Qe7 {[%clk 0:01:28.4]} 29. Ng4 {[%clk
0:01:49.8]} 29... Bxg4 {[%clk 0:01:26.7]} 30. Qxg4 {[%clk 0:01:50.7]} 30... Kh8
{[%clk 0:01:23.7]} 31. Qe2 {[%clk 0:01:37.5]} 31... Bg7 {[%clk 0:01:04.9]} 32.
Qxc4 {[%clk 0:01:34.9]} 32... h5 {[%clk 0:00:48.7]} 33. h4 {[%clk 0:01:15.2]}
33... Rb2 {[%clk 0:00:40.1]} 34. Bb1 {[%clk 0:01:11]} 34... Kh7 {[%clk
0:00:29.8]} 35. Qd4 {[%clk 0:01:01.2]} 35... Rxb1 {[%clk 0:00:27.2]} 36. Rxb1
{[%clk 0:01:00.7]} 36... Nxe4 {[%clk 0:00:27.7]} 37. Qd3 {[%clk 0:00:55.6]}
37... f5 {[%clk 0:00:23.8]} 38. Rf4 {[%clk 0:00:47.1]} 38... Bh6 {[%clk
0:00:17.2]} 39. Nxe4 {[%clk 0:00:42.4]} 39... fxe4 {[%clk 0:00:16.6]} 40. Qg3
{[%clk 0:00:40.6]} 40... Bxf4 {[%clk 0:00:16]} 41. Qxf4 {[%clk 0:00:41.5]} 41...
Rf5 {[%clk 0:00:15.8]} 42. Qg3 {[%clk 0:00:39.3]} 42... e3 {[%clk 0:00:15.5]}
43. Re1 {[%clk 0:00:38.4]} 43... Re5 {[%clk 0:00:15.4]} 44. Re2 {[%clk
0:00:37.3]} 44... Kh6 {[%clk 0:00:15.4]} 45. c4 {[%clk 0:00:34.7]} 45... Re4
{[%clk 0:00:15]} 46. Kg1 {[%clk 0:00:32.5]} 46... Qxh4 {[%clk 0:00:14.1]} 47.
Rxe3 {[%clk 0:00:30.6]} 47... Qxg3 {[%clk 0:00:10.8]} 48. Rxg3 {[%clk
0:00:31.5]} 48... Rxc4 {[%clk 0:00:11.2]} 49. Ra3 {[%clk 0:00:30.7]} 49... Rc5
{[%clk 0:00:11]} 50. Rd3 {[%clk 0:00:31.4]} 50... Kg5 {[%clk 0:00:11]} 51. g3
{[%clk 0:00:29.6]} 51... Kf5 {[%clk 0:00:11.4]} 52. Kf2 {[%clk 0:00:28.7]} 52...
Ke4 {[%clk 0:00:11.4]} 53. Re3+ {[%clk 0:00:26.4]} 53... Kxd5 {[%clk 0:00:11.4]}
54. Re2 {[%clk 0:00:25.9]} 54... Kd4 {[%clk 0:00:11]} 55. Kf3 {[%clk 0:00:25.2]}
55... Rc3+ {[%clk 0:00:10.8]} 56. Kf4 {[%clk 0:00:25.6]} 56... d5 {[%clk
0:00:09.6]} 57. Rd2+ {[%clk 0:00:25.2]} 57... Rd3 {[%clk 0:00:09.9]} 58. Rb2
{[%clk 0:00:25.1]} 58... a4 {[%clk 0:00:09.1]} 59. Rb4+ {[%clk 0:00:24.9]} 59...
Kc3 {[%clk 0:00:09.2]} 60. Rxa4 {[%clk 0:00:25.3]} 60... Rd4+ {[%clk 0:00:08.8]}
61. Rxd4 {[%clk 0:00:24]} 61... Kxd4 {[%clk 0:00:09.7]} 62. a4 {[%clk
0:00:24.7]} 62... Kc5 {[%clk 0:00:09.2]} 63. a5 {[%clk 0:00:24.5]} 63... d4
{[%clk 0:00:08.6]} 64. a6 {[%clk 0:00:24]} 64... Kb6 {[%clk 0:00:08.7]} 65. Ke4
{[%clk 0:00:24.1]} 65... g5 {[%clk 0:00:08.7]} 66. Kxd4 {[%clk 0:00:23.7]} 66...
h4 {[%clk 0:00:09.1]} 67. gxh4 {[%clk 0:00:23]} 67... gxh4 {[%clk 0:00:09.4]}
68. Ke3 {[%clk 0:00:23.6]} 68... h3 {[%clk 0:00:10]} 69. Kf2 {[%clk 0:00:24.3]}
69... h2 {[%clk 0:00:09.5]} 70. Kg2 {[%clk 0:00:24.5]} 70... h1=Q+ {[%clk
0:00:08.9]} 71. Kxh1 {[%clk 0:00:25.1]} 71... Kxa6 {[%clk 0:00:09.7]} 1/2-1/2